[Event "Late-Titled-Tuesday-Blitz-June-25-2024"]
[Site "Chess.com"]
[Date "2024.06.25"]
[Round "3"]
[White "grzechu96"]
[Black "ErikRonka"]
[Result "1-0"]
[WhiteElo "2769"]
[BlackElo "2498"]
[TimeControl "180+1"]
[EndTime "14:26:51 PDT"]
[Termination "grzechu96 won by resignation"]

1. e4 {[%clk 0:03:00.9]} 1... c5 {[%clk 0:02:58.5]} 2. Nf3 {[%clk 0:03:00.9]}
2... e6 {[%clk 0:02:59.1]} 3. d4 {[%clk 0:03:00.3]} 3... cxd4 {[%clk 0:03:00]}
4. Nxd4 {[%clk 0:03:00.8]} 4... Nf6 {[%clk 0:03:00.7]} 5. Nc3 {[%clk 0:02:59.8]}
5... d6 {[%clk 0:03:00.5]} 6. f3 {[%clk 0:02:57.9]} 6... a6 {[%clk 0:02:59.3]}
7. Be3 {[%clk 0:02:56.3]} 7... b5 {[%clk 0:02:59.9]} 8. a3 {[%clk 0:02:55.1]}
8... Nbd7 {[%clk 0:02:55.1]} 9. g4 {[%clk 0:02:53.8]} 9... h6 {[%clk 0:02:54.5]}
10. Qd2 {[%clk 0:02:52.5]} 10... Qc7 {[%clk 0:02:52.3]} 11. O-O-O {[%clk
0:02:52.2]} 11... Nb6 {[%clk 0:02:39.7]} 12. h4 {[%clk 0:02:52]} 12... Nfd7
{[%clk 0:02:36.5]} 13. Rh3 {[%clk 0:02:48.7]} 13... Ne5 {[%clk 0:02:35]} 14. Qe1
{[%clk 0:02:49]} 14... Nec4 {[%clk 0:01:56.9]} 15. Bg1 {[%clk 0:02:48.6]} 15...
Rb8 {[%clk 0:01:41]} 16. g5 {[%clk 0:02:22.4]} 16... g6 {[%clk 0:01:27.8]} 17.
Rg3 {[%clk 0:02:03.9]} 17... Na4 {[%clk 0:01:14]} 18. f4 {[%clk 0:01:58.1]}
18... Naxb2 {[%clk 0:01:00.7]} 19. Bxc4 {[%clk 0:01:25.4]} 19... Nxc4 {[%clk
0:00:49.9]} 20. Nb1 {[%clk 0:01:25.7]} 20... hxg5 {[%clk 0:00:46.5]} 21. hxg5
{[%clk 0:01:25.2]} 21... Bg7 {[%clk 0:00:36.3]} 22. Rb3 {[%clk 0:01:10.4]} 22...
e5 {[%clk 0:00:29.2]} 23. Ne2 {[%clk 0:00:53.8]} 23... Bg4 {[%clk 0:00:23.8]}
24. Nbc3 {[%clk 0:00:51.3]} 24... exf4 {[%clk 0:00:13.9]} 25. Nd5 {[%clk
0:00:50.6]} 25... Qd7 {[%clk 0:00:14.3]} 26. Bd4 {[%clk 0:00:45.6]} 26... Bxd4
{[%clk 0:00:09.9]} 27. Rxd4 {[%clk 0:00:44.4]} 27... Kf8 {[%clk 0:00:06.4]} 28.
Rxc4 {[%clk 0:00:43.6]} 28... Bxe2 {[%clk 0:00:05.6]} 29. Qxe2 {[%clk
0:00:41.2]} 29... bxc4 {[%clk 0:00:04.1]} 30. Rxb8+ {[%clk 0:00:40]} 30... Kg7
{[%clk 0:00:05]} 31. Rxh8 {[%clk 0:00:38.7]} 31... Kxh8 {[%clk 0:00:05.9]} 32.
Qxc4 {[%clk 0:00:38.8]} 32... Qg4 {[%clk 0:00:05.8]} 33. Qd4+ {[%clk 0:00:38.4]}
1-0

[Event "Late-Titled-Tuesday-Blitz-June-25-2024"]
[Site "Chess.com"]
[Date "2024.06.25"]
[Round "3"]
[White "tptagain"]
[Black "GelmanAlexander"]
[Result "1-0"]
[WhiteElo "3021"]
[BlackElo "2701"]
[TimeControl "180+1"]
[EndTime "14:26:52 PDT"]
[Termination "tptagain won by resignation"]

1. d4 {[%clk 0:03:00.9]} 1... c5 {[%clk 0:02:59.9]} 2. e3 {[%clk 0:03:00.4]}
2... Nf6 {[%clk 0:02:59.3]} 3. Nf3 {[%clk 0:02:59.1]} 3... d6 {[%clk 0:02:59.3]}
4. c4 {[%clk 0:02:58]} 4... Nbd7 {[%clk 0:02:59.1]} 5. d5 {[%clk 0:02:55.8]}
5... h6 {[%clk 0:02:45.8]} 6. Nc3 {[%clk 0:02:53]} 6... g5 {[%clk 0:02:46.1]} 7.
e4 {[%clk 0:02:52.6]} 7... Bg7 {[%clk 0:02:46.2]} 8. Be2 {[%clk 0:02:49.3]} 8...
Ng4 {[%clk 0:02:45.7]} 9. Nd2 {[%clk 0:02:48.6]} 9... Nge5 {[%clk 0:02:45]} 10.
h4 {[%clk 0:02:48.3]} 10... Ng6 {[%clk 0:02:40.6]} 11. hxg5 {[%clk 0:02:38.6]}
11... hxg5 {[%clk 0:02:41.5]} 12. Rxh8+ {[%clk 0:02:38.6]} 12... Bxh8 {[%clk
0:02:42.4]} 13. g3 {[%clk 0:02:38.6]} 13... Nde5 {[%clk 0:02:36.2]} 14. Nf3
{[%clk 0:02:38.6]} 14... Nxf3+ {[%clk 0:02:02.9]} 15. Bxf3 {[%clk 0:02:39.5]}
15... Bxc3+ {[%clk 0:01:53.2]} 16. bxc3 {[%clk 0:02:38.9]} 16... Qa5 {[%clk
0:01:54.1]} 17. Qb3 {[%clk 0:01:58.5]} 17... Ne5 {[%clk 0:01:47.1]} 18. Be2
{[%clk 0:01:58.7]} 18... g4 {[%clk 0:01:47.6]} 19. Bf4 {[%clk 0:01:57.8]} 19...
f6 {[%clk 0:01:44.1]} 20. Kd2 {[%clk 0:01:51.3]} 20... b6 {[%clk 0:00:59.3]} 21.
Bxe5 {[%clk 0:01:48.4]} 21... dxe5 {[%clk 0:00:53.9]} 22. Rh1 {[%clk 0:01:49.3]}
22... Kd8 {[%clk 0:00:42.3]} 23. Bxg4 {[%clk 0:01:30.5]} 23... Bxg4 {[%clk
0:00:39.7]} 24. Rh8+ {[%clk 0:01:30]} 24... Kc7 {[%clk 0:00:40.2]} 25. Rxa8
{[%clk 0:01:30]} 25... Bc8 {[%clk 0:00:40.9]} 26. a4 {[%clk 0:01:04.1]} 26...
Kb7 {[%clk 0:00:38.3]} 27. Rxc8 {[%clk 0:01:03.1]} 27... Kxc8 {[%clk 0:00:38.8]}
28. Qb5 {[%clk 0:01:02.1]} 28... Qxb5 {[%clk 0:00:30.5]} 29. cxb5 {[%clk
0:00:47]} 29... Kd7 {[%clk 0:00:28.3]} 30. f4 {[%clk 0:00:45.7]} 30... Ke8
{[%clk 0:00:26.5]} 31. Ke3 {[%clk 0:00:42.8]} 31... Kf7 {[%clk 0:00:22.2]} 32.
Kf3 {[%clk 0:00:39.9]} 32... exf4 {[%clk 0:00:20.2]} 33. gxf4 {[%clk 0:00:39.7]}
33... Kg6 {[%clk 0:00:21.1]} 34. Kg4 {[%clk 0:00:31.3]} 34... c4 {[%clk
0:00:16.8]} 35. e5 {[%clk 0:00:31.1]} 35... f5+ {[%clk 0:00:16.2]} 36. Kh4
{[%clk 0:00:30.4]} 36... Kh6 {[%clk 0:00:16.6]} 37. d6 {[%clk 0:00:30.5]} 1-0

[Event "Late-Titled-Tuesday-Blitz-June-25-2024"]
[Site "Chess.com"]
[Date "2024.06.25"]
[Round "3"]
[White "Dr_troll"]
[Black "jcibarra"]
[Result "1-0"]
[WhiteElo "2686"]
[BlackElo "2933"]
[TimeControl "180+1"]
[EndTime "14:26:56 PDT"]
[Termination "Dr_troll won on time"]

1. c4 {[%clk 0:02:10.2]} 1... e5 {[%clk 0:02:57.8]} 2. Nc3 {[%clk 0:02:10.6]}
2... Nf6 {[%clk 0:02:54.4]} 3. Nf3 {[%clk 0:02:10.3]} 3... d6 {[%clk 0:02:54.1]}
4. e4 {[%clk 0:02:09.8]} 4... Bg4 {[%clk 0:02:45.4]} 5. d4 {[%clk 0:02:09.5]}
5... exd4 {[%clk 0:02:41]} 6. Qxd4 {[%clk 0:02:09.3]} 6... Bxf3 {[%clk
0:02:39.1]} 7. gxf3 {[%clk 0:02:09.2]} 7... Nc6 {[%clk 0:02:40]} 8. Qe3 {[%clk
0:02:09.2]} 8... g6 {[%clk 0:02:36.8]} 9. b3 {[%clk 0:02:09.2]} 9... Bg7 {[%clk
0:02:36.9]} 10. Bb2 {[%clk 0:02:09.9]} 10... O-O {[%clk 0:02:37.1]} 11. Be2
{[%clk 0:02:10.6]} 11... Nd7 {[%clk 0:02:35.9]} 12. O-O-O {[%clk 0:02:08.1]}
12... a5 {[%clk 0:02:28.2]} 13. h4 {[%clk 0:01:38.1]} 13... Nc5 {[%clk
0:01:38.4]} 14. h5 {[%clk 0:01:21.3]} 14... g5 {[%clk 0:01:15]} 15. h6 {[%clk
0:01:14.1]} 15... Be5 {[%clk 0:01:12.7]} 16. Kb1 {[%clk 0:01:13]} 16... a4
{[%clk 0:01:11]} 17. Rhg1 {[%clk 0:01:10.1]} 17... axb3 {[%clk 0:00:49.7]} 18.
Rxg5+ {[%clk 0:01:07.6]} 18... Kh8 {[%clk 0:00:49.9]} 19. Rxe5 {[%clk
0:01:02.1]} 19... Nxe5 {[%clk 0:00:43.3]} 20. f4 {[%clk 0:01:01.9]} 20... Ned7
{[%clk 0:00:34.8]} 21. axb3 {[%clk 0:00:54.8]} 21... f6 {[%clk 0:00:32.3]} 22.
Nd5 {[%clk 0:00:39.3]} 22... c6 {[%clk 0:00:09.7]} 23. Nxf6 {[%clk 0:00:38]}
23... Nxf6 {[%clk 0:00:09.6]} 24. e5 {[%clk 0:00:38.6]} 24... Qa5 {[%clk
0:00:02.5]} 25. exf6 {[%clk 0:00:34]} 25... Qa2+ {[%clk 0:00:03.2]} 26. Kc2
{[%clk 0:00:33.1]} 26... Rf7 {[%clk 0:00:02.8]} 27. Ra1 {[%clk 0:00:26.8]} 27...
Qxa1 {[%clk 0:00:01.8]} 28. Bxa1 {[%clk 0:00:27.2]} 28... Rxa1 {[%clk
0:00:02.3]} 29. Qe8+ {[%clk 0:00:26.1]} 1-0

[Event "Late-Titled-Tuesday-Blitz-June-25-2024"]
[Site "Chess.com"]
[Date "2024.06.25"]
[Round "3"]
[White "Shahdad2007"]
[Black "GM_dmitrij"]
[Result "0-1"]
[WhiteElo "2590"]
[BlackElo "2986"]
[TimeControl "180+1"]
[EndTime "14:26:56 PDT"]
[Termination "GM_dmitrij won by checkmate"]

1. e4 {[%clk 0:03:00.9]} 1... c6 {[%clk 0:02:59.7]} 2. Nc3 {[%clk 0:02:59.9]}
2... d5 {[%clk 0:03:00.6]} 3. Nf3 {[%clk 0:03:00.2]} 3... dxe4 {[%clk
0:02:58.5]} 4. Nxe4 {[%clk 0:03:01]} 4... Nf6 {[%clk 0:02:59]} 5. Qe2 {[%clk
0:03:01.1]} 5... Na6 {[%clk 0:02:59.4]} 6. d4 {[%clk 0:02:56.8]} 6... Bf5 {[%clk
0:02:50]} 7. Nxf6+ {[%clk 0:02:51.8]} 7... gxf6 {[%clk 0:02:50.9]} 8. c3 {[%clk
0:02:46.9]} 8... Qd5 {[%clk 0:02:48.9]} 9. g3 {[%clk 0:02:23.8]} 9... Be4 {[%clk
0:02:29.4]} 10. Bg2 {[%clk 0:02:21.8]} 10... f5 {[%clk 0:02:29.9]} 11. O-O
{[%clk 0:02:20.3]} 11... e6 {[%clk 0:02:23.6]} 12. Nh4 {[%clk 0:02:17.5]} 12...
Bxg2 {[%clk 0:02:23.2]} 13. Nxg2 {[%clk 0:02:18.4]} 13... O-O-O {[%clk
0:02:18.3]} 14. b4 {[%clk 0:02:02.7]} 14... h5 {[%clk 0:02:13.2]} 15. Bg5 {[%clk
0:01:59.9]} 15... Re8 {[%clk 0:02:06.8]} 16. c4 {[%clk 0:01:59.1]} 16... Qd7
{[%clk 0:02:02.7]} 17. b5 {[%clk 0:01:57]} 17... cxb5 {[%clk 0:02:03.6]} 18.
cxb5 {[%clk 0:01:57]} 18... Nc7 {[%clk 0:01:59.9]} 19. Rac1 {[%clk 0:01:54]}
19... Kb8 {[%clk 0:01:57]} 20. a4 {[%clk 0:01:49.3]} 20... Bd6 {[%clk
0:01:55.5]} 21. h4 {[%clk 0:01:23.8]} 21... Nd5 {[%clk 0:01:54.5]} 22. a5 {[%clk
0:01:20.9]} 22... f6 {[%clk 0:01:53.2]} 23. Bd2 {[%clk 0:01:19.1]} 23... f4
{[%clk 0:01:45.1]} 24. a6 {[%clk 0:01:15]} 24... Rhg8 {[%clk 0:01:37.1]} 25.
Qxh5 {[%clk 0:00:59]} 25... fxg3 {[%clk 0:01:37.2]} 26. f3 {[%clk 0:00:54.4]}
26... f5 {[%clk 0:01:23]} 27. axb7 {[%clk 0:00:48.7]} 27... Qxb7 {[%clk
0:01:14.6]} 28. Rc6 {[%clk 0:00:45.4]} 28... Qd7 {[%clk 0:01:10.4]} 29. Re1
{[%clk 0:00:33.3]} 29... Bc7 {[%clk 0:00:56.4]} 30. Qh6 {[%clk 0:00:30]} 30...
e5 {[%clk 0:00:45.7]} 31. dxe5 {[%clk 0:00:26.8]} 31... Rh8 {[%clk 0:00:45.7]}
32. Qg6 {[%clk 0:00:25.5]} 32... Ne7 {[%clk 0:00:46]} 33. Qg5 {[%clk 0:00:21.2]}
33... Nxc6 {[%clk 0:00:42.5]} 34. bxc6 {[%clk 0:00:22.1]} 34... Qxc6 {[%clk
0:00:40.7]} 35. Bf4 {[%clk 0:00:21]} 35... Qxf3 {[%clk 0:00:38.4]} 36. Rb1+
{[%clk 0:00:19.2]} 36... Ka8 {[%clk 0:00:37.1]} 37. Qg7 {[%clk 0:00:13.7]} 37...
Qf2+ {[%clk 0:00:36.1]} 38. Kh1 {[%clk 0:00:13.7]} 38... Rxh4+ {[%clk 0:00:37]}
39. Nxh4 {[%clk 0:00:14]} 39... Qh2# {[%clk 0:00:37.9]} 0-1

[Event "Late-Titled-Tuesday-Blitz-June-25-2024"]
[Site "Chess.com"]
[Date "2024.06.25"]
[Round "3"]
[White "Stanbad1"]
[Black "Oleksandr_Bortnyk"]
[Result "1/2-1/2"]
[WhiteElo "2735"]
[BlackElo "3061"]
[TimeControl "180+1"]
[EndTime "14:26:58 PDT"]
[Termination "Game drawn by agreement"]

1. d4 {[%clk 0:03:00.9]} 1... d6 {[%clk 0:02:57.7]} 2. Nc3 {[%clk 0:02:59.7]}
2... Nf6 {[%clk 0:02:58.4]} 3. e4 {[%clk 0:02:58.5]} 3... Nbd7 {[%clk 0:02:59]}
4. Be3 {[%clk 0:02:57.8]} 4... e5 {[%clk 0:02:58.5]} 5. f3 {[%clk 0:02:57.8]}
5... c6 {[%clk 0:02:57.5]} 6. dxe5 {[%clk 0:02:56.7]} 6... dxe5 {[%clk
0:02:56.4]} 7. a4 {[%clk 0:02:56.6]} 7... Bb4 {[%clk 0:02:53.9]} 8. Qd2 {[%clk
0:02:55.1]} 8... O-O {[%clk 0:02:53.8]} 9. Bc4 {[%clk 0:02:54.7]} 9... Nc5
{[%clk 0:02:43.1]} 10. Nge2 {[%clk 0:02:50.3]} 10... Be6 {[%clk 0:02:41.4]} 11.
Qxd8 {[%clk 0:02:34.1]} 11... Rfxd8 {[%clk 0:02:38.8]} 12. Bxc5 {[%clk
0:02:28.7]} 12... Bxc5 {[%clk 0:02:39.7]} 13. Bxe6 {[%clk 0:02:28.9]} 13... fxe6
{[%clk 0:02:40.6]} 14. Rd1 {[%clk 0:02:29.1]} 14... h5 {[%clk 0:02:33.5]} 15.
Nc1 {[%clk 0:02:27.5]} 15... h4 {[%clk 0:02:32]} 16. Nd3 {[%clk 0:02:27.1]}
16... Bd4 {[%clk 0:02:31.4]} 17. Ne2 {[%clk 0:02:26.2]} 17... Nd7 {[%clk
0:02:21.8]} 18. g3 {[%clk 0:02:21.5]} 18... hxg3 {[%clk 0:02:17.9]} 19. hxg3
{[%clk 0:02:22.4]} 19... Bb6 {[%clk 0:02:17]} 20. c3 {[%clk 0:02:21.4]} 20...
Nc5 {[%clk 0:02:09.3]} 21. Nxc5 {[%clk 0:02:16.5]} 21... Bxc5 {[%clk 0:02:10.2]}
22. Nc1 {[%clk 0:02:16.7]} 22... b5 {[%clk 0:02:06.3]} 23. Nd3 {[%clk
0:02:14.3]} 23... Bd6 {[%clk 0:02:04.8]} 24. axb5 {[%clk 0:02:13.1]} 24... cxb5
{[%clk 0:02:04.7]} 25. Ke2 {[%clk 0:02:13.7]} 25... a5 {[%clk 0:02:04.2]} 26.
Ra1 {[%clk 0:02:13.6]} 26... a4 {[%clk 0:02:04.3]} 27. Rh5 {[%clk 0:02:13.5]}
27... g6 {[%clk 0:02:04.1]} 28. Rg5 {[%clk 0:02:13]} 28... b4 {[%clk 0:01:47.2]}
29. cxb4 {[%clk 0:02:06.7]} 29... Rac8 {[%clk 0:01:47.1]} 30. Rxa4 {[%clk
0:02:03.7]} 30... Rc2+ {[%clk 0:01:46.8]} 31. Ke3 {[%clk 0:02:04]} 31... Bc7
{[%clk 0:01:01.3]} 32. Ra6 {[%clk 0:01:59.1]} 32... Kh7 {[%clk 0:00:38]} 33.
Nxe5 {[%clk 0:01:49.7]} 33... Rxb2 {[%clk 0:00:24.8]} 34. Rxe6 {[%clk
0:01:47.2]} 34... Rb3+ {[%clk 0:00:21]} 35. Kf4 {[%clk 0:01:47.2]} 35... Rf8+
{[%clk 0:00:20]} 36. Kg4 {[%clk 0:01:47.3]} 36... Bxe5 {[%clk 0:00:20.8]} 37.
Rexe5 {[%clk 0:01:35]} 37... Rfxf3 {[%clk 0:00:21.5]} 38. Kh3 {[%clk 0:01:34.3]}
38... Rxb4 {[%clk 0:00:12.4]} 39. Re6 {[%clk 0:01:33.9]} 39... Re3 {[%clk
0:00:08.7]} 40. e5 {[%clk 0:01:24.4]} 40... Rbe4 {[%clk 0:00:08.6]} 41. Rexg6
{[%clk 0:01:21.1]} 41... Rxe5 {[%clk 0:00:09]} 42. Rg7+ {[%clk 0:01:20.6]} 42...
Kh8 {[%clk 0:00:09.1]} 43. Rg4 {[%clk 0:01:14.5]} 43... Re2 {[%clk 0:00:02.8]}
44. Rb7 {[%clk 0:01:09.6]} 44... Rh5+ {[%clk 0:00:03]} 45. Rh4 {[%clk 0:01:09]}
45... Rxh4+ {[%clk 0:00:03.9]} 46. Kxh4 {[%clk 0:01:09.3]} 46... Re5 {[%clk
0:00:04.2]} 47. g4 {[%clk 0:01:08.1]} 47... Kg8 {[%clk 0:00:04.8]} 48. g5 {[%clk
0:01:07.9]} 48... Ra5 {[%clk 0:00:05]} 49. Kh5 {[%clk 0:01:06.9]} 49... Ra6
{[%clk 0:00:05.5]} 50. Rc7 {[%clk 0:01:06.1]} 50... Rb6 {[%clk 0:00:05.6]}
1/2-1/2

[Event "Late-Titled-Tuesday-Blitz-June-25-2024"]
[Site "Chess.com"]
[Date "2024.06.25"]
[Round "3"]
[White "romulocardoso"]
[Black "koncheto"]
[Result "0-1"]
[WhiteElo "2305"]
[BlackElo "2570"]
[TimeControl "180+1"]
[EndTime "14:26:58 PDT"]
[Termination "koncheto won on time"]

1. e4 {[%clk 0:02:55.5]} 1... c5 {[%clk 0:02:57.3]} 2. Nf3 {[%clk 0:02:56]} 2...
d6 {[%clk 0:02:57.5]} 3. d4 {[%clk 0:01:36.9]} 3... cxd4 {[%clk 0:02:58.4]} 4.
Nxd4 {[%clk 0:01:36.1]} 4... Nf6 {[%clk 0:02:54.5]} 5. Nc3 {[%clk 0:01:36.2]}
5... Nc6 {[%clk 0:02:45.6]} 6. Be3 {[%clk 0:01:35.5]} 6... e6 {[%clk 0:02:28.5]}
7. f3 {[%clk 0:01:32.3]} 7... a6 {[%clk 0:02:27.5]} 8. Qd2 {[%clk 0:01:31.2]}
8... Bd7 {[%clk 0:02:27]} 9. O-O-O {[%clk 0:01:31.7]} 9... b5 {[%clk 0:02:26.9]}
10. g4 {[%clk 0:01:31.9]} 10... h6 {[%clk 0:02:12.4]} 11. h4 {[%clk 0:01:30.8]}
11... Rc8 {[%clk 0:02:10.3]} 12. Kb1 {[%clk 0:01:26.8]} 12... Ne5 {[%clk
0:02:07.1]} 13. a3 {[%clk 0:01:16.3]} 13... Be7 {[%clk 0:01:56]} 14. Be2 {[%clk
0:01:15.3]} 14... Qc7 {[%clk 0:01:49.8]} 15. g5 {[%clk 0:01:15]} 15... hxg5
{[%clk 0:01:43.8]} 16. hxg5 {[%clk 0:01:15.9]} 16... Nh5 {[%clk 0:01:44.2]} 17.
f4 {[%clk 0:01:03.5]} 17... Nc4 {[%clk 0:01:43.9]} 18. Qc1 {[%clk 0:00:55.9]}
18... g6 {[%clk 0:01:38.7]} 19. f5 {[%clk 0:00:54.7]} 19... Nxa3+ {[%clk
0:01:29]} 20. Ka2 {[%clk 0:00:34.7]} 20... b4 {[%clk 0:01:25.1]} 21. bxa3 {[%clk
0:00:21.4]} 21... Qxc3 {[%clk 0:01:22.4]} 22. Bxa6 {[%clk 0:00:16.8]} 22... Ra8
{[%clk 0:01:17.6]} 23. Nb5 {[%clk 0:00:15.1]} 23... Qc4+ {[%clk 0:00:53.1]} 24.
Kb1 {[%clk 0:00:13.2]} 24... Rxa6 {[%clk 0:00:51.9]} 25. Bd4 {[%clk 0:00:04.6]}
25... e5 {[%clk 0:00:26.4]} 26. Bb2 {[%clk 0:00:01]} 26... Bxb5 {[%clk
0:00:20.5]} 0-1

[Event "Late-Titled-Tuesday-Blitz-June-25-2024"]
[Site "Chess.com"]
[Date "2024.06.25"]
[Round "3"]
[White "Mikhail_Golubev"]
[Black "PapaieDudu"]
[Result "1-0"]
[WhiteElo "2658"]
[BlackElo "2458"]
[TimeControl "180+1"]
[EndTime "14:26:59 PDT"]
[Termination "Mikhail_Golubev won by checkmate"]

1. e4 {[%clk 0:03:00.9]} 1... c5 {[%clk 0:03:00]} 2. Nf3 {[%clk 0:03:00.4]} 2...
d6 {[%clk 0:03:00.3]} 3. d4 {[%clk 0:03:00.6]} 3... cxd4 {[%clk 0:03:01.2]} 4.
Nxd4 {[%clk 0:03:00.9]} 4... Nf6 {[%clk 0:03:01.3]} 5. Nc3 {[%clk 0:03:00.5]}
5... a6 {[%clk 0:03:01.9]} 6. Bc4 {[%clk 0:03:00.4]} 6... e6 {[%clk 0:03:01.7]}
7. Bb3 {[%clk 0:03:00.5]} 7... Be7 {[%clk 0:03:01.8]} 8. g4 {[%clk 0:02:58.5]}
8... O-O {[%clk 0:03:00.6]} 9. Be3 {[%clk 0:02:57.7]} 9... Nc6 {[%clk
0:03:00.2]} 10. g5 {[%clk 0:02:39.6]} 10... Nd7 {[%clk 0:02:53.9]} 11. Rg1
{[%clk 0:02:19.6]} 11... Nc5 {[%clk 0:02:52.4]} 12. Qh5 {[%clk 0:02:07.1]} 12...
Nxd4 {[%clk 0:02:26.2]} 13. Bxd4 {[%clk 0:02:05.4]} 13... e5 {[%clk 0:02:25]}
14. Bxc5 {[%clk 0:01:16.8]} 14... g6 {[%clk 0:02:12.9]} 15. Qh6 {[%clk
0:01:04.4]} 15... dxc5 {[%clk 0:02:11.1]} 16. Rd1 {[%clk 0:00:59.2]} 16... Qa5
{[%clk 0:01:56.5]} 17. Rg3 {[%clk 0:00:58.4]} 17... Rd8 {[%clk 0:01:50.8]} 18.
Bxf7+ {[%clk 0:00:49.5]} 18... Kh8 {[%clk 0:01:20.1]} 19. Bxg6 {[%clk
0:00:41.6]} 19... Rxd1+ {[%clk 0:01:17.7]} 20. Kxd1 {[%clk 0:00:41.6]} 20...
Qd8+ {[%clk 0:01:16.5]} 21. Nd5 {[%clk 0:00:40.2]} 21... Qg8 {[%clk 0:01:03.5]}
22. Nxe7 {[%clk 0:00:37.8]} 22... Qg7 {[%clk 0:00:15.2]} 23. Qxg7+ {[%clk
0:00:36.3]} 23... Kxg7 {[%clk 0:00:15.8]} 24. Bf5 {[%clk 0:00:36.8]} 24... Bxf5
{[%clk 0:00:11.7]} 25. exf5 {[%clk 0:00:36.7]} 25... Rd8+ {[%clk 0:00:11]} 26.
Rd3 {[%clk 0:00:35.7]} 26... Re8 {[%clk 0:00:10.1]} 27. Rd7 {[%clk 0:00:33.9]}
27... e4 {[%clk 0:00:05.9]} 28. Nd5+ {[%clk 0:00:33.5]} 28... Kf8 {[%clk
0:00:05.4]} 29. Nf6 {[%clk 0:00:31.8]} 29... Re5 {[%clk 0:00:04]} 30. g6 {[%clk
0:00:28.6]} 30... hxg6 {[%clk 0:00:03.3]} 31. fxg6 {[%clk 0:00:28.4]} 31... Rg5
{[%clk 0:00:03.5]} 32. Rf7# {[%clk 0:00:27.6]} 1-0

[Event "Late-Titled-Tuesday-Blitz-June-25-2024"]
[Site "Chess.com"]
[Date "2024.06.25"]
[Round "3"]
[White "rockstar0902"]
[Black "Chempiblinka"]
[Result "1-0"]
[WhiteElo "2612"]
[BlackElo "2411"]
[TimeControl "180+1"]
[EndTime "14:27:00 PDT"]
[Termination "rockstar0902 won by resignation"]

1. c4 {[%clk 0:03:00.9]} 1... Nf6 {[%clk 0:02:59.4]} 2. Nc3 {[%clk 0:02:58.4]}
2... g6 {[%clk 0:02:59.5]} 3. e4 {[%clk 0:02:58.4]} 3... d6 {[%clk 0:02:58]} 4.
g3 {[%clk 0:02:57]} 4... Bg7 {[%clk 0:02:58.4]} 5. Bg2 {[%clk 0:02:57.4]} 5...
O-O {[%clk 0:02:58.9]} 6. Nge2 {[%clk 0:02:58.1]} 6... c5 {[%clk 0:02:59.2]} 7.
O-O {[%clk 0:02:54.9]} 7... Nc6 {[%clk 0:02:59.7]} 8. d3 {[%clk 0:02:55.4]} 8...
a6 {[%clk 0:02:59.7]} 9. h3 {[%clk 0:02:54.5]} 9... Rb8 {[%clk 0:03:00]} 10. a4
{[%clk 0:02:54.8]} 10... Ne8 {[%clk 0:02:58.9]} 11. Be3 {[%clk 0:02:55.4]} 11...
Nc7 {[%clk 0:02:59.1]} 12. d4 {[%clk 0:02:56.1]} 12... b6 {[%clk 0:02:57.7]} 13.
Rb1 {[%clk 0:02:39.9]} 13... e5 {[%clk 0:02:53.6]} 14. d5 {[%clk 0:02:35.7]}
14... Nb4 {[%clk 0:02:38.7]} 15. f4 {[%clk 0:02:27.3]} 15... b5 {[%clk
0:02:24.2]} 16. b3 {[%clk 0:02:14.4]} 16... exf4 {[%clk 0:02:12.3]} 17. gxf4
{[%clk 0:02:11.4]} 17... bxc4 {[%clk 0:02:03.4]} 18. bxc4 {[%clk 0:02:12.3]}
18... a5 {[%clk 0:02:04]} 19. e5 {[%clk 0:02:11.6]} 19... Na8 {[%clk 0:01:58.1]}
20. Nb5 {[%clk 0:02:08.2]} 20... dxe5 {[%clk 0:01:54.4]} 21. Bxc5 {[%clk
0:02:07.7]} 21... Re8 {[%clk 0:01:39.6]} 22. fxe5 {[%clk 0:01:51.8]} 22... Bxe5
{[%clk 0:01:35.8]} 23. Ned4 {[%clk 0:01:50.5]} 23... Qh4 {[%clk 0:01:14.5]} 24.
Nf3 {[%clk 0:01:47.9]} 24... Qg3 {[%clk 0:01:10.2]} 25. Nxe5 {[%clk 0:01:47.5]}
25... Qxe5 {[%clk 0:01:00.4]} 26. Qf3 {[%clk 0:01:46.4]} 26... Bf5 {[%clk
0:00:55.2]} 27. Bd6 {[%clk 0:01:41.3]} 27... Qg7 {[%clk 0:00:40.5]} 28. Bxb8
{[%clk 0:01:24.6]} 28... Bxb1 {[%clk 0:00:40.2]} 29. Rxb1 {[%clk 0:01:21.2]}
29... Rxb8 {[%clk 0:00:40]} 30. d6 {[%clk 0:01:21]} 30... Rd8 {[%clk 0:00:38.3]}
31. c5 {[%clk 0:01:16.6]} 31... Nc2 {[%clk 0:00:30]} 32. Rd1 {[%clk 0:01:05.3]}
32... Nb4 {[%clk 0:00:19.3]} 33. c6 {[%clk 0:01:02.1]} 33... Nb6 {[%clk
0:00:19.5]} 34. c7 {[%clk 0:00:54.7]} 34... Rf8 {[%clk 0:00:20]} 35. d7 {[%clk
0:00:53.9]} 35... Nxd7 {[%clk 0:00:19.2]} 36. Rxd7 {[%clk 0:00:54.8]} 36... Qa1+
{[%clk 0:00:18.8]} 37. Bf1 {[%clk 0:00:46.7]} 37... Nc2 {[%clk 0:00:14.7]} 38.
c8=Q {[%clk 0:00:43.7]} 38... Ne1 {[%clk 0:00:14.4]} 39. Qxf7+ {[%clk
0:00:42.5]} 1-0